bitfinex-derivatives/quotes_BTCF0:USTF0_20260119
["timestamp","ask_amount","ask_price","bid_price","bid_amount"]
[1768806394304,0.00961131,92654.0,92640.0,0.00016192]
[1768806397311,0.00961131,92654.0,92640.0,0.15651876]
[1768806398407,0.00961131,92654.0,92640.0,0.01096192]
[1768806399114,0.0972,92656.0,92640.0,0.01096192]
[1768806399314,0.0972,92656.0,92644.0,0.010799]
[1768806402214,0.0972,92656.0,92640.0,0.15651876]
[1768806402411,0.00963641,92655.0,92640.0,0.01096192]
[1768806402616,0.00963641,92655.0,92640.0,0.15651876]
[1768806404129,0.00963641,92655.0,92640.0,0.01096192]
[1768806404427,0.02546954,92654.0,92640.0,0.00016192]
[1768806404630,0.00963641,92653.0,92640.0,0.00016192]
[1768806414136,0.00963641,92653.0,92640.0,0.01096192]
[1768806414331,0.00963641,92653.0,92640.0,0.00016192]
[1768806421937,0.02372488,92652.0,92640.0,0.00016192]
[1768806422128,0.03318768,92650.0,92633.0,0.010801]
[1768806422327,0.0094628,92649.0,92633.0,0.010801]
[1768806422941,0.0094628,92649.0,92630.0,0.14555684]
[1768806423137,0.0094628,92647.0,92630.0,0.14555684]
[1768806423439,0.0094628,92646.0,92630.0,0.14555684]
[1768806423830,0.0094628,92645.0,92630.0,0.14555684]
[1768806424344,0.0094628,92636.0,92629.0,1e-08]
[1768806424637,0.0094628,92636.0,92620.0,0.01061155]
[1768806424845,0.0094628,92636.0,92620.0,0.14555684]
[1768806427750,0.0094628,92636.0,92621.0,0.010802]
[1768806428139,0.00016192,92637.0,92621.0,0.010802]
[1768806428842,0.00016192,92637.0,92619.0,0.0972]
[1768806429044,0.00016192,92637.0,92620.0,0.14555684]
[1768806429863,0.00016192,92637.0,92617.0,0.05591693]
[1768806430040,0.0108,92636.0,92620.0,0.14555684]
[1768806431349,0.0108,92636.0,92618.0,0.0972]
[1768806431647,0.0108,92636.0,92620.0,0.14555684]
[1768806433450,0.0108,92636.0,92618.0,0.0972]
[1768806433641,0.010801,92633.0,92620.0,0.14555684]
[1768806434949,0.010801,92633.0,92619.0,0.0972]
[1768806435146,0.010801,92633.0,92617.0,0.04511393]
[1768806435341,0.010801,92633.0,92618.0,0.0972]
[1768806435541,0.02042472,92637.0,92620.0,0.14555684]
[1768806436639,0.02042472,92637.0,92619.0,0.02447087]
[1768806436845,0.02042472,92637.0,92620.0,0.14555684]
[1768806437446,0.00962472,92637.0,92620.0,0.14555684]
[1768806437744,0.00962472,92637.0,92619.0,0.03413002]
[1768806437949,0.00962472,92637.0,92620.0,0.14555684]
[1768806438548,0.010801,92633.0,92620.0,0.14555684]
[1768806438746,0.00016192,92637.0,92620.0,0.14555684]
[1768806438957,0.00016192,92637.0,92619.0,0.02447087]
[1768806439157,0.00016192,92637.0,92620.0,0.00965915]
[1768806439455,0.010801,92633.0,92620.0,0.03413002]
[1768806440259,0.010801,92630.0,92620.0,0.02447087]
[1768806442674,0.010801,92628.0,92620.0,0.02447087]
[1768806442968,0.010801,92628.0,92616.0,0.00965915]
[1768806443349,0.010801,92628.0,92616.0,0.03170031]
[1768806443765,0.14555684,92630.0,92614.0,0.0972]
[1768806444064,0.00984304,92621.0,92602.0,0.00999771]
[1768806444556,0.010803,92617.0,92602.0,0.00999771]
[1768806445162,0.010803,92617.0,92604.0,0.01237342]
[1768806446464,0.010803,92615.0,92604.0,0.00237571]
[1768806447353,0.00984304,92619.0,92604.0,0.00237571]
[1768806447558,0.010804,92609.0,92604.0,0.00237571]
[1768806448159,0.010804,92606.0,92591.0,0.10719771]
[1768806448667,0.010804,92606.0,92592.0,0.00999771]
[1768806449265,0.010804,92610.0,92593.0,0.03203887]
[1768806449468,0.010804,92610.0,92600.0,0.14555684]
[1768806449864,0.03291229,92614.0,92595.0,0.03203887]
[1768806450064,0.03291229,92614.0,92596.0,0.0095527]
[1768806450267,0.010803,92614.0,92600.0,0.14555684]
[1768806451569,0.010803,92612.0,92600.0,0.14555684]
[1768806451776,0.010804,92610.0,92600.0,0.14555684]
[1768806452773,0.010804,92607.0,92600.0,0.14555684]
[1768806452971,0.010804,92607.0,92596.0,0.0095527]
[1768806453171,0.010803,92610.0,92596.0,0.0095527]
[1768806454370,0.010803,92614.0,92598.0,0.03110215]
[1768806455269,0.00016192,92616.0,92598.0,0.04190715]
[1768806455570,0.010803,92615.0,92598.0,0.04190715]
[1768806455758,0.010803,92612.0,92598.0,0.03110215]
[1768806455958,0.010804,92609.0,92593.0,0.0095527]
[1768806456674,0.010804,92609.0,92594.0,0.0095527]
[1768806457879,0.03066181,92615.0,92594.0,0.0095527]
[1768806459469,0.010803,92611.0,92594.0,0.0095527]
[1768806462078,0.010804,92609.0,92594.0,0.0095527]
[1768806462681,0.010804,92606.0,92594.0,0.0095527]
[1768806462883,0.010804,92604.0,92587.0,0.01954009]
[1768806463187,0.010804,92604.0,92588.0,0.09724]
[1768806463487,0.010804,92604.0,92588.0,0.10684925]
[1768806464578,0.00927463,92608.0,92588.0,0.10684925]
[1768806464774,0.00927463,92608.0,92590.0,0.00960925]
[1768806465082,0.010804,92606.0,92590.0,0.00960925]
[1768806465273,0.010804,92606.0,92588.0,0.09724]
[1768806465477,0.010804,92604.0,92588.0,0.09724]
[1768806469288,0.010804,92604.0,92588.0,0.10684925]
[1768806469985,0.010804,92607.0,92588.0,0.10684925]
[1768806471987,0.010804,92607.0,92589.0,0.00960925]
[1768806473082,0.010804,92605.0,92589.0,0.00960925]
[1768806476890,0.1372316,92609.0,92589.0,0.00960925]
[1768806477288,0.010804,92607.0,92589.0,0.00960925]
[1768806478293,0.1264276,92609.0,92593.0,0.010805]
[1768806478494,0.09724,92609.0,92595.0,0.010805]
[1768806478791,0.09724,92609.0,92596.0,0.00998041]
[1768806480289,0.09724,92609.0,92595.0,0.010805]
[1768806480594,0.09724,92609.0,92595.0,0.02078541]
[1768806481596,0.09724,92609.0,92597.0,0.00998041]
[1768806481794,0.09724,92615.0,92601.0,0.00232128]
[1768806482096,0.02316459,92614.0,92602.0,0.01542035]
[1768806482291,0.02316459,92613.0,92602.0,0.01542035]
[1768806482491,0.02316459,92612.0,92602.0,0.01542035]
[1768806482699,0.09724,92615.0,92598.0,0.00232128]
[1768806482899,0.00963202,92613.0,92594.0,0.010805]
[1768806483197,0.03399461,92612.0,92594.0,0.010805]
[1768806483399,0.010803,92612.0,92594.0,0.02622535]
[1768806483698,0.00963202,92613.0,92595.0,0.01542035]
[1768806483898,0.02319271,92612.0,92595.0,0.01542035]
[1768806484097,0.00963202,92613.0,92595.0,0.01542035]
[1768806484290,0.02319401,92612.0,92595.0,0.01542035]
[1768806484491,0.00963202,92613.0,92595.0,0.01542035]
[1768806484691,0.02319401,92612.0,92595.0,0.01542035]
[1768806484892,0.00963202,92613.0,92595.0,0.01542035]
[1768806485187,0.02319401,92612.0,92595.0,0.01542035]
[1768806485391,0.02043502,92613.0,92595.0,0.01542035]
[1768806485600,0.02319579,92612.0,92595.0,0.01542035]
[1768806485900,0.02043502,92613.0,92595.0,0.01542035]
[1768806486093,0.02319579,92612.0,92595.0,0.01542035]
[1768806486292,0.02319742,92611.0,92595.0,0.01542035]
[1768806486496,0.02043502,92613.0,92595.0,0.01542035]
[1768806486702,0.02319742,92612.0,92595.0,0.01542035]
[1768806486902,0.00963202,92612.0,92595.0,0.01542035]
[1768806487096,0.02319742,92611.0,92595.0,0.01542035]
[1768806487297,0.00963202,92612.0,92595.0,0.01542035]
[1768806487502,0.00963202,92610.0,92593.0,0.010805]
[1768806491003,0.00963202,92610.0,92590.0,0.09724]
[1768806491205,0.00963202,92608.0,92591.0,0.010806]
[1768806492395,0.00963202,92608.0,92594.0,0.010805]
[1768806492604,0.00963202,92608.0,92591.0,0.010806]
[1768806494907,0.00963202,92608.0,92594.0,0.010805]
[1768806495609,0.00963202,92613.0,92596.0,0.010805]
[1768806495809,0.02321603,92612.0,92596.0,0.010805]
[1768806496014,0.02321603,92611.0,92596.0,0.010805]
[1768806496202,0.02321603,92610.0,92596.0,0.02832459]
[1768806496509,0.00963202,92614.0,92596.0,0.02832459]
[1768806496709,0.03284803,92613.0,92596.0,0.02622535]
[1768806496911,0.02321601,92612.0,92596.0,0.02622535]
[1768806497112,0.02321601,92611.0,92598.0,0.010805]
[1768806497422,0.02321601,92610.0,92598.0,0.010805]
[1768806497601,0.00963202,92612.0,92598.0,0.010805]
[1768806497802,0.02321541,92611.0,92598.0,0.010805]
[1768806498003,0.02321541,92610.0,92598.0,0.010805]
[1768806498204,0.00963202,92612.0,92598.0,0.010805]
[1768806498404,0.02321505,92611.0,92598.0,0.010805]
[1768806498607,0.02321505,92610.0,92598.0,0.010805]
[1768806498806,0.00963202,92614.0,92598.0,0.010805]
[1768806499015,0.02321505,92613.0,92598.0,0.010805]
[1768806499202,0.02321505,92612.0,92598.0,0.010805]
[1768806499511,0.02321505,92611.0,92598.0,0.010805]
[1768806499710,0.02321505,92610.0,92598.0,0.010805]
[1768806499910,0.00963202,92614.0,92598.0,0.010805]
[1768806500109,0.02321478,92613.0,92598.0,0.010805]
[1768806500311,0.02321478,92612.0,92600.0,0.010805]
[1768806500611,0.02321478,92611.0,92600.0,0.010805]
[1768806500809,0.02321478,92610.0,92600.0,0.010805]
[1768806501012,0.10687202,92615.0,92600.0,0.010805]
[1768806501202,0.03284656,92614.0,92600.0,0.010805]
[1768806501403,0.02321454,92613.0,92600.0,0.010805]
[1768806501701,0.02321454,92612.0,92600.0,0.010805]
[1768806501898,0.02321454,92611.0,92600.0,0.010805]
[1768806502116,0.02321454,92610.0,92600.0,0.010805]
[1768806502413,0.00963202,92614.0,92600.0,0.010805]
[1768806502599,0.02321419,92613.0,92600.0,0.010805]
[1768806502804,0.02321419,92612.0,92606.0,0.010804]
[1768806503011,0.09724,92615.0,92606.0,0.010804]
[1768806503312,0.0232112,92614.0,92606.0,0.010804]
[1768806503515,0.0232112,92613.0,92606.0,0.010804]
[1768806503706,0.09724,92615.0,92602.0,0.010804]
[1768806503903,0.02321119,92614.0,92602.0,0.010804]
[1768806504103,0.02321119,92613.0,92600.0,0.01289575]
[1768806504305,0.02321119,92612.0,92600.0,0.01118469]
[1768806504509,0.108043,92615.0,92600.0,0.01118469]
[1768806504814,0.02321046,92614.0,92600.0,0.01118469]
[1768806505007,0.02321046,92613.0,92600.0,0.01118469]
[1768806505204,0.02321046,92612.0,92600.0,0.010804]
[1768806505414,0.09724,92615.0,92600.0,0.010804]
[1768806505712,0.02321025,92614.0,92600.0,0.010804]
[1768806505918,0.02321025,92613.0,92602.0,0.010804]
[1768806506105,0.02321025,92612.0,92602.0,0.010804]
[1768806506308,0.09724,92615.0,92602.0,0.010804]
[1768806506506,0.02320974,92614.0,92602.0,0.010804]
[1768806506707,0.02320974,92613.0,92602.0,0.010804]
[1768806506909,0.02320974,92612.0,92602.0,0.010804]
[1768806507103,0.09724,92615.0,92602.0,0.010804]
[1768806507304,0.02320933,92614.0,92602.0,0.010804]
[1768806507505,0.02320933,92613.0,92602.0,0.010804]
[1768806507803,0.02320933,92612.0,92602.0,0.010804]
[1768806508000,0.09724,92615.0,92602.0,0.010804]
[1768806508204,0.02320933,92614.0,92599.0,0.010805]
[1768806508417,0.02320933,92613.0,92599.0,0.010805]
[1768806508608,0.02320933,92612.0,92599.0,0.010805]
[1768806508808,0.09724,92615.0,92599.0,0.010805]
[1768806509007,0.03283599,92614.0,92599.0,0.010805]
[1768806509308,0.02320909,92613.0,92599.0,0.010805]
[1768806509607,0.02320909,92612.0,92599.0,0.010805]
[1768806509809,0.0096269,92614.0,92599.0,0.010805]
[1768806510011,0.02320879,92613.0,92599.0,0.010805]
[1768806510216,0.02320879,92612.0,92596.0,0.01288838]
[1768806510516,0.0096269,92614.0,92596.0,0.01288838]
[1768806510716,0.02320863,92613.0,92596.0,0.01288838]
[1768806510916,0.02320863,92612.0,92596.0,0.01288838]
[1768806511107,0.0096269,92614.0,92596.0,0.01288838]
[1768806511304,0.02320841,92613.0,92596.0,0.01288838]
[1768806511512,0.0096269,92614.0,92601.0,0.010804]
[1768806511707,0.02320841,92613.0,92604.0,0.010804]
[1768806511908,0.0096269,92614.0,92604.0,0.010804]
[1768806512114,0.0232084,92613.0,92604.0,0.010804]
[1768806512313,0.0096269,92614.0,92604.0,0.010804]
[1768806512515,0.02330568,92613.0,92604.0,0.010804]
[1768806512817,0.02330568,92612.0,92604.0,0.010804]
[1768806513023,0.0096269,92614.0,92604.0,0.010804]
[1768806513217,0.02330553,92613.0,92604.0,0.010804]
[1768806513416,0.09724,92615.0,92604.0,0.010804]
[1768806513617,0.02330549,92614.0,92604.0,0.010804]
[1768806513817,0.02330549,92613.0,92604.0,0.010804]
[1768806514117,0.1068669,92615.0,92604.0,0.010804]
[1768806514420,0.02330529,92614.0,92604.0,0.010804]
[1768806514718,0.02330529,92613.0,92604.0,0.010804]
[1768806514920,0.1068669,92615.0,92604.0,0.010804]
[1768806515112,0.02330522,92614.0,92604.0,0.010804]
[1768806515306,0.02330522,92613.0,92604.0,0.010804]
[1768806515510,0.1068669,92615.0,92604.0,0.010804]
[1768806515712,0.02330497,92614.0,92604.0,0.010804]
[1768806515916,0.02330497,92613.0,92604.0,0.010804]
[1768806516115,0.1068669,92615.0,92604.0,0.010804]
[1768806516420,0.0233048,92614.0,92604.0,0.010804]
[1768806516615,0.0233048,92613.0,92604.0,0.010804]
[1768806516917,0.0096269,92615.0,92604.0,0.010804]
[1768806517112,0.0233048,92614.0,92604.0,0.010804]
[1768806517314,0.0233048,92613.0,92604.0,0.010804]
[1768806517513,0.0096269,92615.0,92604.0,0.010804]
[1768806517723,0.0233047,92614.0,92604.0,0.010804]
[1768806517917,0.0233047,92613.0,92604.0,0.010804]
[1768806518114,0.0096269,92615.0,92604.0,0.010804]
[1768806518421,0.03293174,92614.0,92600.0,0.14564733]
[1768806518624,0.02330484,92613.0,92602.0,0.010804]
[1768806518822,0.0096269,92614.0,92602.0,0.010804]
[1768806519023,0.02330488,92613.0,92602.0,0.010804]
[1768806519224,0.0096269,92614.0,92602.0,0.010804]
[1768806519424,0.02330496,92613.0,92602.0,0.010804]
[1768806519624,0.0096269,92614.0,92602.0,0.010804]
[1768806519826,0.02330496,92613.0,92602.0,0.010804]
[1768806520014,0.0096269,92614.0,92602.0,0.010804]
[1768806520217,0.02330496,92613.0,92602.0,0.010804]
[1768806520418,0.0096269,92614.0,92602.0,0.010804]
[1768806520621,0.02330515,92613.0,92602.0,0.010804]
[1768806520822,0.0096269,92614.0,92602.0,0.010804]
[1768806521020,0.02330515,92613.0,92602.0,0.010804]
[1768806521219,0.0096269,92614.0,92602.0,0.010804]
[1768806521421,0.02330541,92613.0,92600.0,0.14564733]
[1768806521625,0.0096269,92614.0,92601.0,0.010804]
[1768806521829,0.02330541,92613.0,92603.0,0.010804]
[1768806522127,0.0096269,92614.0,92603.0,0.010804]
[1768806522327,0.02330575,92613.0,92603.0,0.010804]
[1768806522528,0.0096269,92614.0,92603.0,0.010804]
[1768806522729,0.02330575,92613.0,92603.0,0.010804]
[1768806522928,0.0096269,92614.0,92603.0,0.010804]
[1768806523128,0.02330569,92613.0,92603.0,0.010804]
[1768806523328,0.0096269,92614.0,92600.0,0.14564733]
[1768806523529,0.02330605,92613.0,92600.0,0.14564733]
[1768806523723,0.02885192,92616.0,92604.0,0.010804]
[1768806523931,0.02330573,92615.0,92604.0,0.010804]
[1768806524121,0.02330573,92614.0,92604.0,0.010804]
[1768806524320,0.02330573,92613.0,92604.0,0.010804]
[1768806524520,0.02885192,92616.0,92604.0,0.010804]
[1768806524731,0.02330612,92615.0,92604.0,0.010804]
[1768806524929,0.02330612,92614.0,92604.0,0.010804]
[1768806525129,0.02330612,92613.0,92604.0,0.010804]
[1768806525332,0.02885192,92616.0,92604.0,0.010804]
[1768806525630,0.02330697,92615.0,92604.0,0.010804]
[1768806525831,0.02330697,92614.0,92604.0,0.010804]
[1768806526132,0.02330697,92613.0,92604.0,0.010804]
[1768806526325,0.03874215,92616.0,92604.0,0.010804]
[1768806526531,0.02330758,92615.0,92604.0,0.010804]
[1768806526727,0.02330758,92614.0,92604.0,0.010804]
[1768806526932,0.02330758,92613.0,92604.0,0.010804]
[1768806527132,0.03874215,92616.0,92604.0,0.010804]
[1768806527333,0.02330828,92615.0,92604.0,0.010804]
[1768806527531,0.02330828,92614.0,92604.0,0.010804]
[1768806527741,0.02330828,92613.0,92604.0,0.010804]
[1768806528035,0.00989023,92615.0,92604.0,0.010804]
[1768806528233,0.02330871,92614.0,92604.0,0.010804]
[1768806528434,0.02330871,92613.0,92604.0,0.010804]
[1768806528636,0.00989023,92615.0,92604.0,0.010804]
[1768806528933,0.02330871,92614.0,92604.0,0.010804]
[1768806529132,0.02330871,92613.0,92604.0,0.010804]
[1768806529334,0.00989023,92615.0,92604.0,0.010804]
[1768806529534,0.0233092,92614.0,92604.0,0.010804]
[1768806529834,0.0233092,92613.0,92604.0,0.010804]
[1768806530036,0.02885192,92616.0,92604.0,0.010804]
[1768806530230,0.02330981,92615.0,92604.0,0.010804]
[1768806530432,0.02330981,92614.0,92604.0,0.010804]
[1768806530627,0.02330981,92613.0,92604.0,0.010804]
[1768806530831,0.02330981,92612.0,92604.0,0.010804]
[1768806531036,0.00989023,92615.0,92604.0,0.010804]
[1768806531228,0.02331067,92614.0,92604.0,0.010804]
[1768806531534,0.02331067,92613.0,92604.0,0.010804]
[1768806531736,0.00989023,92615.0,92604.0,0.010804]
[1768806532036,0.02331062,92614.0,92604.0,0.010804]
[1768806532225,0.02331062,92613.0,92604.0,0.010804]
[1768806532431,0.02331062,92612.0,92604.0,0.010804]
[1768806532634,0.00989023,92615.0,92604.0,0.010804]
[1768806532834,0.02331175,92614.0,92604.0,0.010804]
[1768806533134,0.02331175,92613.0,92604.0,0.010804]
[1768806533333,0.02331175,92612.0,92604.0,0.010804]
[1768806533534,0.00989023,92615.0,92604.0,0.010804]
[1768806533735,0.02331172,92614.0,92604.0,0.010804]
[1768806533936,0.02331172,92613.0,92604.0,0.010804]
[1768806534131,0.02331172,92612.0,92604.0,0.010804]
[1768806534434,0.00989023,92615.0,92604.0,0.010804]
[1768806534634,0.0233117,92614.0,92604.0,0.010804]
[1768806534839,0.0233117,92613.0,92604.0,0.010804]
[1768806535137,0.0233117,92612.0,92604.0,0.010804]
[1768806535439,0.00989023,92615.0,92604.0,0.010804]
[1768806535640,0.02331194,92614.0,92604.0,0.010804]
[1768806535832,0.02331194,92613.0,92604.0,0.010804]
[1768806536030,0.02331194,92612.0,92604.0,0.010804]
[1768806536231,0.00989023,92615.0,92604.0,0.010804]
[1768806536428,0.03237305,92614.0,92604.0,0.010804]
[1768806536733,0.02331206,92613.0,92604.0,0.010804]
[1768806536933,0.02331206,92612.0,92604.0,0.010804]
[1768806537133,0.00906099,92614.0,92604.0,0.010804]
[1768806537334,0.02331213,92613.0,92604.0,0.010804]
[1768806537535,0.02331213,92612.0,92604.0,0.010804]
[1768806537733,0.00906099,92614.0,92604.0,0.010804]
[1768806537936,0.02331205,92613.0,92604.0,0.010804]
[1768806538137,0.00906099,92614.0,92604.0,0.010804]
[1768806538337,0.02331209,92613.0,92604.0,0.010804]
[1768806538538,0.00906099,92614.0,92604.0,0.010804]
[1768806538739,0.02331209,92613.0,92606.0,0.010804]
[1768806539040,0.00906099,92614.0,92606.0,0.010804]
[1768806539241,0.0233122,92613.0,92606.0,0.010804]
[1768806539435,0.00906099,92614.0,92606.0,0.010804]
[1768806539636,0.0233122,92613.0,92606.0,0.010804]
[1768806539941,0.0233122,92612.0,92606.0,0.010804]
[1768806540140,0.00906099,92614.0,92606.0,0.010804]
[1768806540341,0.0233124,92613.0,92606.0,0.010804]
[1768806540544,0.02331236,92612.0,92606.0,0.010804]
[1768806540849,0.00906099,92614.0,92606.0,0.010804]
[1768806541049,0.02331245,92613.0,92606.0,0.010804]
[1768806541244,0.02331245,92612.0,92606.0,0.010804]
[1768806541443,0.00906099,92614.0,92606.0,0.010804]
[1768806541646,0.02331266,92613.0,92606.0,0.010804]
[1768806541844,0.02331266,92612.0,92603.0,0.010804]
[1768806542041,0.00906099,92614.0,92603.0,0.010804]
[1768806542244,0.02326568,92613.0,92603.0,0.010804]
[1768806542547,0.02326568,92612.0,92603.0,0.010804]
[1768806542738,0.00906099,92614.0,92603.0,0.010804]
[1768806542938,0.02326575,92613.0,92603.0,0.010804]
[1768806543139,0.02326575,92612.0,92603.0,0.010804]
[1768806543438,0.00906099,92613.0,92603.0,0.010804]
[1768806543640,0.02326592,92612.0,92603.0,0.010804]
[1768806543840,0.00906099,92613.0,92603.0,0.010804]
[1768806544042,0.02326592,92612.0,92603.0,0.010804]
[1768806544237,0.00906099,92613.0,92603.0,0.010804]
[1768806544438,0.02326599,92612.0,92603.0,0.010804]
[1768806544645,0.00906099,92613.0,92603.0,0.010804]
[1768806544845,0.02326599,92612.0,92603.0,0.010804]
[1768806545044,0.00906099,92613.0,92603.0,0.010804]
[1768806545246,0.02326597,92612.0,92600.0,0.14564733]
[1768806545444,0.00906099,92613.0,92600.0,0.14564733]
[1768806545746,0.02326599,92612.0,92600.0,0.14564733]
[1768806545949,0.00906099,92613.0,92600.0,0.14564733]
[1768806546248,0.02326599,92612.0,92600.0,0.14564733]
[1768806546446,0.00016192,92616.0,92605.0,0.010804]
[1768806546646,0.02326598,92615.0,92605.0,0.010804]
[1768806546847,0.02326598,92614.0,92605.0,0.010804]
[1768806547147,0.02326598,92613.0,92605.0,0.010804]
[1768806547348,0.02326598,92612.0,92605.0,0.010804]
[1768806547549,0.00016192,92616.0,92605.0,0.010804]
[1768806547749,0.02326598,92615.0,92605.0,0.010804]
[1768806547949,0.02326598,92614.0,92605.0,0.010804]
[1768806548144,0.02326598,92613.0,92605.0,0.010804]
[1768806548345,0.02326598,92612.0,92605.0,0.010804]
[1768806548550,0.00016192,92616.0,92605.0,0.010804]
[1768806548751,0.023266,92615.0,92605.0,0.010804]
[1768806548942,0.023266,92614.0,92605.0,0.010804]
[1768806549145,0.023266,92613.0,92605.0,0.010804]
[1768806549347,0.023266,92612.0,92605.0,0.010804]
[1768806549547,0.00922291,92616.0,92605.0,0.010804]
[1768806549749,0.02326607,92615.0,92605.0,0.010804]
[1768806549947,0.02326607,92614.0,92605.0,0.010804]
[1768806550144,0.02326607,92613.0,92605.0,0.010804]
[1768806550338,0.02326607,92612.0,92605.0,0.010804]
[1768806550542,0.00922291,92616.0,92605.0,0.010804]
[1768806550742,0.02326614,92615.0,92605.0,0.010804]
[1768806550949,0.02326614,92614.0,92605.0,0.010804]
[1768806551150,0.02326614,92613.0,92605.0,0.010804]
[1768806551349,0.02326614,92612.0,92605.0,0.010804]
[1768806551545,0.00922291,92616.0,92605.0,0.010804]
[1768806551750,0.02326615,92615.0,92605.0,0.010804]
[1768806551951,0.02326615,92614.0,92605.0,0.010804]
[1768806552151,0.02326615,92613.0,92605.0,0.010804]
[1768806552352,0.00922291,92616.0,92605.0,0.010804]
[1768806552653,0.02326619,92615.0,92605.0,0.010804]
[1768806552852,0.02326619,92614.0,92605.0,0.010804]
[1768806553151,0.02326619,92613.0,92605.0,0.010804]
[1768806553353,0.00922291,92616.0,92605.0,0.010804]
[1768806553552,0.02326611,92615.0,92605.0,0.010804]
[1768806553749,0.02326611,92614.0,92605.0,0.010804]
[1768806553949,0.02326611,92613.0,92605.0,0.010804]
[1768806554150,0.00922291,92616.0,92605.0,0.010804]
[1768806554350,0.0232662,92615.0,92605.0,0.010804]
[1768806554652,0.0232662,92614.0,92605.0,0.010804]
[1768806554852,0.0232662,92613.0,92605.0,0.010804]
[1768806555054,0.00922291,92616.0,92605.0,0.010804]
[1768806555252,0.02326605,92615.0,92605.0,0.010804]
[1768806555551,0.02326605,92614.0,92605.0,0.010804]
[1768806555752,0.02326605,92613.0,92605.0,0.010804]
[1768806555952,0.00922291,92616.0,92605.0,0.010804]
[1768806556142,0.02326594,92615.0,92605.0,0.010804]
[1768806556345,0.02326594,92614.0,92605.0,0.010804]
[1768806556641,0.02326594,92613.0,92605.0,0.010804]
[1768806556841,0.00922291,92616.0,92605.0,0.010804]
[1768806557045,0.02326586,92615.0,92605.0,0.010804]
[1768806557242,0.02326586,92614.0,92605.0,0.010804]
[1768806557453,0.02326586,92613.0,92605.0,0.010804]
[1768806557655,0.00922291,92616.0,92605.0,0.010804]
[1768806557856,0.02326588,92615.0,92605.0,0.010804]
[1768806558053,0.02326588,92614.0,92605.0,0.010804]
[1768806558253,0.02326588,92613.0,92605.0,0.010804]
[1768806558454,0.00922291,92616.0,92605.0,0.010804]
[1768806558653,0.02326586,92615.0,92605.0,0.010804]
[1768806558855,0.02326586,92614.0,92605.0,0.010804]
[1768806559048,0.02326586,92613.0,92605.0,0.010804]
[1768806559248,0.00922291,92616.0,92605.0,0.010804]
[1768806559454,0.02326582,92615.0,92605.0,0.010804]
[1768806559655,0.02326582,92614.0,92605.0,0.010804]
[1768806559856,0.02326582,92613.0,92605.0,0.010804]
[1768806560150,0.00016192,92616.0,92605.0,0.010804]
[1768806560353,0.04533,92617.0,92607.0,0.00944314]
[1768806560557,0.00237519,92624.0,92612.0,0.010803]
[1768806560750,0.06281836,92624.0,92612.0,0.010803]
[1768806565168,0.00237519,92624.0,92614.0,0.010803]
[1768806566965,0.00237519,92624.0,92611.0,0.010803]
[1768806567366,0.01209111,92624.0,92611.0,0.010803]
[1768806568565,0.01209111,92624.0,92610.0,0.14564733]
[1768806568766,0.02289311,92624.0,92610.0,0.14564733]
[1768806568965,0.00971592,92623.0,92610.0,0.14564733]
[1768806569166,0.00971592,92623.0,92609.0,0.00016192]
[1768806570457,0.00971592,92619.0,92609.0,0.00016192]
[1768806570661,0.00971592,92619.0,92604.0,0.09724]
[1768806570967,0.009223,92617.0,92600.0,0.15645233]
[1768806571171,0.00971592,92616.0,92600.0,0.15645233]
[1768806571471,0.00971592,92616.0,92602.0,0.010804]
[1768806575572,0.00971592,92616.0,92604.0,0.010804]
[1768806575773,0.00971592,92616.0,92606.0,0.010804]
[1768806575977,0.00971592,92621.0,92606.0,0.010804]
[1768806576177,0.03267003,92620.0,92608.0,0.010804]
[1768806576365,0.00971592,92620.0,92610.0,0.010803]
[1768806576771,0.00971592,92620.0,92612.0,0.010803]
[1768806577078,0.01209111,92624.0,92615.0,0.010803]
[1768806577373,0.02295361,92623.0,92617.0,0.010803]
[1768806577567,0.00237519,92624.0,92617.0,0.010803]
[1768806579372,0.00237519,92624.0,92603.0,0.010804]
[1768806579373,0.03303,92628.0,92619.0,0.02011165]
[1768806580973,0.03303,92628.0,92619.0,0.010802]
[1768806581375,0.03303,92628.0,92616.0,0.00930965]
[1768806582080,0.03303,92628.0,92616.0,0.01137722]
[1768806582770,0.09724,92634.0,92620.0,0.00930965]
[1768806582975,1e-08,92629.0,92620.0,0.00930965]
[1768806583177,1e-08,92629.0,92623.0,0.010802]
[1768806584282,1e-08,92629.0,92620.0,0.01141993]
[1768806585468,1e-08,92629.0,92626.0,0.010802]
[1768806586378,0.09724,92641.0,92630.0,0.010801]
[1768806586577,0.02292688,92640.0,92630.0,0.010801]
[1768806586878,0.09724,92641.0,92633.0,0.010801]
[1768806589881,0.09724,92641.0,92630.0,0.010801]
[1768806591176,0.09724,92641.0,92627.0,0.010801]
[1768806591487,0.1064009,92641.0,92626.0,0.010801]
[1768806591886,0.1064009,92641.0,92628.0,0.010801]
[1768806594392,0.1064009,92641.0,92625.0,0.02011165]
[1768806594581,0.00987407,92640.0,92625.0,0.010802]
[1768806595492,0.00987407,92640.0,92622.0,0.09724]
[1768806595696,0.00987407,92640.0,92623.0,0.010802]
[1768806601798,0.00987407,92630.0,92618.0,0.0972]
[1768806601993,0.00987407,92629.0,92612.0,0.010803]
[1768806602201,0.00968189,92628.0,92613.0,0.0972]
[1768806602390,0.00987407,92627.0,92613.0,0.0972]
[1768806602795,0.00987407,92627.0,92614.0,0.010803]
[1768806603403,0.010801,92633.0,92614.0,0.010803]
[1768806603404,0.00987407,92625.0,92614.0,0.010803]
[1768806605407,0.00987407,92625.0,92609.0,0.00237559]
[1768806605593,0.01955596,92611.0,92592.0,0.010805]
[1768806605794,0.00987407,92606.0,92592.0,0.010805]
[1768806606001,0.00987407,92605.0,92592.0,0.010805]
[1768806606591,0.00987407,92605.0,92597.0,0.010805]
[1768806606802,0.00016192,92608.0,92597.0,0.010805]
[1768806607299,0.01003599,92608.0,92593.0,0.010805]
[1768806610705,0.00987407,92607.0,92593.0,0.010805]
[1768806611699,0.02796,92606.0,92593.0,0.010805]
[1768806613408,0.02796,92606.0,92593.0,0.02067215]
[1768806613907,0.02796,92606.0,92593.0,0.00986715]
[1768806614505,0.02796,92606.0,92589.0,0.010806]
[1768806614804,0.02796,92606.0,92589.0,0.02067315]
[1768806615208,0.02796,92606.0,92589.0,0.00986715]
[1768806615510,0.02796,92606.0,92588.0,0.09724]
[1768806615511,0.00987407,92605.0,92588.0,0.09724]